fUSD/lending_fUSD_20260207
["ID","MTS","AMOUNT","RATE_DAILY","PERIOD"]
[404708435,1770486654013,-260.044583,0.00044107,120]
[404708436,1770486654024,-151.0,0.00044107,120]
[404708437,1770486654036,-253.047317,0.00044107,120]
[404708438,1770486654048,-260.044583,0.00044107,120]
[404708439,1770486654058,-215.388266,0.00044107,120]
[404708440,1770486654070,-253.047317,0.00044107,120]
[404708441,1770486654082,-260.044579,0.00044107,120]
[404708442,1770486654095,-253.047317,0.00044107,120]
[404708443,1770486654108,-253.047317,0.00044107,120]
[404708444,1770486654120,-253.047317,0.00044107,120]
[404708445,1770486654131,-253.047317,0.00044107,120]
[404708446,1770486654143,-253.047317,0.00044107,120]
[404708447,1770486654155,-253.047317,0.00044107,120]
[404708448,1770486654166,-253.047317,0.00044107,120]
[404708449,1770486654177,-253.047317,0.00044107,120]
[404708450,1770486654187,-253.047317,0.00044107,120]
[404708451,1770486654198,-253.047317,0.00044107,120]
[404708452,1770486654208,-253.047317,0.00044107,120]
[404708453,1770486654218,-253.047317,0.00044107,120]
[404708454,1770486654232,-151.0,0.00044107,120]
[404708455,1770486654245,-253.047317,0.00044107,120]
[404708456,1770486654257,-151.0,0.00044107,120]
[404708457,1770486654267,-253.04732,0.00044107,120]
[404708458,1770486654277,-169.471874,0.00044107,120]
[404708459,1770486654287,-151.0,0.00044107,120]
[404708460,1770486654296,-153.490758,0.00044107,120]
[404708461,1770486654307,-171.238283,0.00044107,120]
[404708462,1770486654317,-151.0,0.00044107,120]
[404708463,1770486654328,-181.525363,0.00044107,120]
[404708464,1770486654340,-266.64861201,0.00044107,120]
[404708465,1770486654352,-15912.16882488,0.00044107,61]
[404708466,1770486654362,-355641.58616817,0.00044107,10]
[404708467,1770486654497,-682.24,0.00035616,120]
[404708468,1770486654507,-317.76,0.00044107,10]
[404708469,1770486654584,-6584.0,0.00027225,2]
[404708470,1770486654595,-5154.362,0.00030225,2]
[404708471,1770486654607,-682.24,0.00035616,120]
[404708472,1770486654618,-682.24,0.00035616,120]
[404708473,1770486654629,-682.24,0.00035616,120]
[404708474,1770486654640,-682.24,0.00035616,120]
[404708475,1770486654651,-682.24,0.00040899,120]
[404708476,1770486654662,-682.24,0.00042999,120]
[404708477,1770486654674,-151.0,0.00043641,120]
[404708478,1770486654685,-682.24,0.00043779,120]
[404708479,1770486654696,-151.0,0.00044104,120]
[404708480,1770486654706,-6386649.32681507,0.00044107,10]
[404708481,1770486654725,-682.24,0.00043779,120]
[404708482,1770486654736,-356.6901923,0.00044107,10]
[404708483,1770486654798,-4580.05,0.00044107,10]
[404708484,1770486654867,-500.399907,0.00031543,2]
[404708485,1770486654877,-649.5,0.000355,30]
[404708486,1770486654887,-682.24,0.00043779,120]
[404708487,1770486654897,-682.24,0.00043779,120]
[404708488,1770486654907,-682.30484198,0.00043779,120]
[404708489,1770486654916,-9378.68163511,0.00044107,10]
[404708490,1770486654945,-410.4007566,0.00039788,20]
[404708491,1770486654958,-335.04991627,0.00039788,20]
[404708492,1770486654982,-371.22022614,0.00039788,20]
[404708493,1770486654995,-175.37977386,0.00039788,20]
[404708494,1770486655013,-927.93336902,0.00039788,20]
[404708495,1770486655022,-883.75246884,0.00044007,2]
[404708496,1770486655032,-321.52680751,0.00044107,10]
[404708499,1770486666744,0.48355129,0.00017145,120]
[404708500,1770486666800,599.51644871,0.00017145,120]
[404708501,1770486666921,600.0,0.00019906,120]
[404708502,1770486668487,200.0,0.00017145,120]
[404708503,1770486668635,200.0,0.00019906,120]
[404708524,1770487148054,808.16469151,7.945e-05,2]
[404708525,1770487148087,1001.0,7.945e-05,2]
[404708526,1770487148114,1001.0,7.945e-05,2]
[404708527,1770487148145,1928.97021249,7.945e-05,2]
[404708570,1770487832141,-500.0,0.00015173,2]
[404708571,1770487832151,-276.0,0.00015173,2]
[404708572,1770487832162,-195.0,0.00015174,2]
[404708573,1770487832171,-229.0,0.00015174,2]
[404708574,1770487832305,-371.0,0.00015174,2]
[404708575,1770487832314,-249.98453335,0.00015177,2]
[404708583,1770487838341,-33.81309074,0.00015177,2]
[404708584,1770487838351,-257.57790926,0.00015177,2]
[404708585,1770487838445,-42.42209074,0.00015177,2]
[404708586,1770487838456,-600.0,0.00015179,2]
[404708587,1770487838466,-38.42540977,0.00015207,2]
[404708588,1770487838500,-261.57459023,0.00015207,2]
[404708590,1770487838509,-239.21112212,0.00015314,2]
[404708727,1770487840490,-360.78887788,0.00015314,2]
[404708728,1770487840500,-1200.0,0.00015511,2]
[404708729,1770487840509,-1200.0,0.00015512,2]
[404708730,1770487840518,-500.0,0.00015513,2]
[404708731,1770487840528,-500.0,0.00015513,2]
[404708732,1770487840537,-184.52318996,0.00015513,2]
[404708733,1770487840547,-3650.33793216,0.00015513,2]
[404708734,1770487840558,-3608.27472446,0.00015513,2]
[404708735,1770487840569,-2741.37734338,0.00015513,2]
[404708736,1770487840578,-150.99,0.00015513,2]
[404708737,1770487840588,-907.63265662,0.00016547,2]
[404708738,1770487840604,-1592.36734338,0.00016547,2]
[404708739,1770487840613,-153.93021215,0.00016547,2]
[404708740,1770487840623,-1855.7177143,0.0001659,2]
[404708741,1770487840632,-2223.87915651,0.0001659,2]
[404708742,1770487840641,-2304.82415248,0.0001659,2]
[404708743,1770487840652,-2446.82021071,0.0001659,2]
[404708744,1770487840662,-150.0,0.00016619,2]
[404708745,1770487840671,-189.84,0.00016637,3]
[404708746,1770487840682,-500.0,0.00016646,2]
[404708747,1770487840692,-308.98643631,0.00016646,2]
[404708748,1770487840701,-520.74363624,0.00016646,2]
[404708749,1770487840711,-500.0,0.00016646,2]
[404708750,1770487840722,-224.566124,0.00016646,2]
[404708751,1770487840735,-500.0,0.00016646,2]
[404708752,1770487840745,-500.0,0.00016646,2]
[404708753,1770487840756,-500.0,0.00016646,2]
[404708754,1770487840767,-500.0,0.00016646,2]
[404708755,1770487840776,-500.0,0.00016646,2]
[404708756,1770487840787,-500.0,0.00016646,2]
[404708757,1770487840797,-614.23087105,0.00016646,2]
[404708758,1770487840807,-500.0,0.00016646,2]
[404708759,1770487840817,-193.00927511,0.00016646,2]
[404708760,1770487840827,-3500000.0,0.00016647,2]
[404708761,1770487840838,-195.0,0.0001669,2]
[404708762,1770487840848,-600.0,0.0001669,2]
[404708763,1770487840858,-250.0,0.0001669,2]
[404708764,1770487840867,-300.0,0.0001669,2]
[404708765,1770487840877,-2500.0,0.00016692,2]
[404708766,1770487840886,-2500.0,0.00016692,2]
[404708767,1770487840895,-2500.0,0.00016692,2]
[404708768,1770487840904,-2500.0,0.00016692,2]
[404708769,1770487840913,-1056.16927478,0.00016692,2]
[404708770,1770487840922,-600.0,0.00016692,2]
[404708771,1770487840932,-200.0,0.00016692,2]
[404708772,1770487840941,-213.94127192,0.00016692,2]
[404708773,1770487840950,-300.0,0.00016692,2]
[404708774,1770487840960,-300.0,0.00016692,2]
[404708775,1770487840969,-2541.44,0.00016732,2]
[404708776,1770487840979,-3240.0,0.00016802,2]
[404708777,1770487840988,-1852.42,0.00016956,2]
[404708778,1770487840998,-1200.0,0.00017053,2]
[404708779,1770487841008,-1063.57,0.0001773,2]
[404708780,1770487841018,-500.0,0.00017808,2]
[404708781,1770487841028,-500.0,0.00017808,2]
[404708782,1770487841038,-500.0,0.00017808,2]
[404708783,1770487841048,-498.11202766,0.00017808,2]
[404708784,1770487841058,-500.0,0.00017808,2]
[404708785,1770487841067,-500.0,0.00017808,2]
[404708786,1770487841076,-500.0,0.00017808,2]
[404708787,1770487841086,-500.0,0.000179,2]
[404708788,1770487841095,-507.0,0.00018,2]
[404708789,1770487841105,-153.93021215,0.00018176,2]
[404708790,1770487841118,-160.16,0.0001843,2]
[404708791,1770487841128,-33304.9777,0.000188,2]
[404708792,1770487841137,-1000.0,0.000188,2]
[404708793,1770487841147,-150.0,0.000189,7]
[404708794,1770487841158,-209.6,0.00019,2]
[404708795,1770487841169,-500.0,0.00019517,2]
[404708796,1770487841178,-160.16,0.00019582,2]
[404708797,1770487841187,-1855.71771429,0.00019636,2]
[404708798,1770487841197,-2446.82021063,0.00019636,2]
[404708799,1770487841206,-153.93021215,0.00019804,2]
[404708800,1770487841216,-1063.57,0.00019947,2]
[404708801,1770487841226,-250.37152364,0.00020048,2]
[404708802,1770487841235,-507.0,0.00020214,4]
[404708803,1770487841245,-2223.87915646,0.00020506,2]
[404708804,1770487841255,-160.16,0.00020734,2]
[404708805,1770487841264,-153.93021215,0.00021433,2]
[404708806,1770487841274,-160.16,0.00021886,2]
[404708807,1770487841284,-1063.57,0.00022163,2]
[404708808,1770487841295,-2965.36,0.000222,7]
[404708809,1770487841306,-507.0,0.00022429,6]
[404708810,1770487841315,-1855.71771429,0.00022682,2]
[404708811,1770487841325,-160.0,0.00023,2]
[404708812,1770487841334,-160.16,0.00023038,2]
[404708813,1770487841343,-153.93021215,0.00023062,2]
[404708814,1770487841354,-10797.06,0.00023589,2]
[404708815,1770487841364,-160.16,0.0002419,2]
[404708816,1770487841374,-159.021,0.00024225,2]
[404708817,1770487841384,-250.0,0.00024225,2]
[404708818,1770487841394,-191.746,0.00024225,2]
[404708819,1770487841404,-164.487,0.00024225,2]
[404708820,1770487841414,-212.873,0.00024225,2]
[404708821,1770487841423,-250.0,0.00024225,2]
[404708822,1770487841432,-172.0,0.00024225,2]
[404708823,1770487841441,-232.546,0.00024225,2]
[404708824,1770487841452,-6584.0,0.00024225,2]
[404708825,1770487841462,-1063.57,0.00024379,2]
[404708826,1770487841472,-2223.87915646,0.00024423,2]
[404708827,1770487841483,-507.0,0.00024643,8]
[404708828,1770487841497,-150.0,0.00024658,2]
[404708829,1770487841507,-153.93021215,0.00024691,2]
[404708830,1770487841516,-291.59598529,0.00025,2]
[404708831,1770487841525,-181.92,0.000253,14]
[404708832,1770487841536,-160.16,0.00025342,2]
[404708833,1770487841546,-1855.71771429,0.00025728,2]
[404708834,1770487841555,-150.0,0.0002589,2]
[404708835,1770487841565,-153.93021215,0.0002632,2]
[404708836,1770487841575,-160.16,0.00026494,2]
[404708837,1770487841584,-1063.57,0.00026596,120]
[404708838,1770487841595,-507.0,0.00026857,10]
[404708839,1770487841605,-150.0,0.00027185,2]
[404708840,1770487841615,-150.0,0.00027225,2]
[404708841,1770487841626,-150.0,0.00027225,2]
[404708842,1770487841637,-150.0,0.00027225,2]
[404708843,1770487841647,-150.0,0.00027225,2]
[404708844,1770487841657,-150.0,0.00027225,2]
[404708845,1770487841668,-5154.362,0.00027225,2]
[404708846,1770487841678,-150.0,0.00027369,2]
[404708847,1770487841688,-160.16,0.00027645,2]
[404708848,1770487841697,-153.93021215,0.00027949,2]
[404708849,1770487841708,-2223.87915646,0.00028339,2]
[404708850,1770487841718,-150.0,0.00028544,2]
[404708851,1770487841730,-1855.71771429,0.00028774,2]
[404708852,1770487841739,-507.0,0.00029071,12]
[404708853,1770487841748,-153.93021215,0.00029577,2]
[404708854,1770487841762,-150.0,0.00029971,2]
[404708855,1770487841773,-150.0,0.00030225,2]
[404708856,1770487841784,-150.0,0.00030225,2]
[404708857,1770487841794,-2304.82415246,0.00030298,2]
[404708858,1770487841803,-153.93021215,0.00031206,2]
[404708859,1770487841813,-507.0,0.00031286,14]
[404708860,1770487841823,-161.764824,0.0003135,30]
[404708861,1770487841834,-150.0,0.0003147,2]
[404708862,1770487841843,-2965.36,0.000315,7]
[404708863,1770487841853,-1855.71771429,0.00031821,2]
[404708864,1770487841863,-274.49,0.00032,14]
[404708865,1770487841878,-2223.87915646,0.00032256,2]
[404708866,1770487841889,-153.93021215,0.00032835,2]
[404708867,1770487841899,-20366.33,0.000329,14]
[404708868,1770487841906,-150.0,0.00033,14]
[404708869,1770487841915,-302.28,0.00033,2]
[404708870,1770487841923,-178.46,0.00033,14]
[404708871,1770487841932,-169.28,0.00033,14]
[404708872,1770487841941,-150.0,0.00033043,2]
[404708873,1770487841950,-507.0,0.000335,16]
[404708874,1770487841959,-500.0,0.00033753,2]
[404708875,1770487841968,-200.0,0.00033979,2]
[404708876,1770487841977,-153.93021215,0.00034464,2]
[404708877,1770487841987,-326.5,0.00034512,30]
[404708878,1770487841996,-150.0,0.00034696,2]
[404708879,1770487842005,-377.451256,0.00034779,60]
[404708880,1770487842015,-1855.71771429,0.00034867,2]
[404708881,1770487842024,-9681.0,0.00034933,5]
[404708882,1770487842035,-166.66,0.00035072,2]
[404708883,1770487842045,-164.8272093,0.000356,120]
[404708884,1770487842054,-161.09653074,0.000356,120]
[404708885,1770487842064,-500.0,0.00035616,2]
[404708886,1770487842074,-500.0,0.00035616,2]
[404708887,1770487842084,-151.0,0.00035616,120]
[404708888,1770487842093,-303.16141225,0.00035616,120]
[404708889,1770487842103,-235.076235,0.00035616,120]
[404708890,1770487842111,-171.53093421,0.00035616,120]
[404708891,1770487842120,-500.0,0.00035616,120]
[404708892,1770487842130,-500.0,0.00035616,120]
[404708893,1770487842139,-500.0,0.00035616,120]
[404708894,1770487842148,-500.0,0.00035616,120]
[404708895,1770487842157,-500.0,0.00035616,120]
[404708896,1770487842167,-500.0,0.00035616,120]
[404708897,1770487842177,-500.0,0.00035616,120]
[404708898,1770487842186,-500.0,0.00035616,120]
[404708899,1770487842195,-500.0,0.00035616,120]
[404708900,1770487842204,-500.0,0.00035616,120]
[404708901,1770487842214,-478.64943382,0.00035616,120]
[404708902,1770487842224,-511.91007817,0.00035616,120]
[404708903,1770487842234,-305.5561384,0.00035616,120]
[404708904,1770487842243,-500.0,0.00035616,120]
[404708905,1770487842257,-500.0,0.00035616,120]
[404708906,1770487842266,-500.0,0.00035616,120]
[404708907,1770487842275,-500.0,0.00035616,120]
[404708908,1770487842284,-500.0,0.00035616,120]
[404708909,1770487842295,-500.0,0.00035616,120]
[404708910,1770487842304,-500.0,0.00035616,120]
[404708911,1770487842313,-500.0,0.00035616,120]
[404708912,1770487842322,-500.0,0.00035616,120]
[404708913,1770487842332,-500.0,0.00035616,120]
[404708914,1770487842341,-500.0,0.00035616,120]
[404708915,1770487842351,-500.0,0.00035616,120]
[404708916,1770487842360,-500.0,0.00035616,120]
[404708917,1770487842369,-530.93788762,0.00035616,120]
[404708918,1770487842379,-500.0,0.00035616,120]
[404708919,1770487842388,-500.0,0.00035616,120]
[404708920,1770487842397,-500.0,0.00035616,120]
[404708921,1770487842406,-500.0,0.00035616,120]
[404708922,1770487842415,-500.0,0.00035616,120]
[404708923,1770487842424,-500.0,0.00035616,120]
[404708924,1770487842434,-500.0,0.00035616,120]
[404708925,1770487842443,-500.0,0.00035616,120]
[404708926,1770487842452,-500.0,0.00035616,120]
[404708927,1770487842462,-500.0,0.00035616,120]
[404708928,1770487842472,-500.0,0.00035616,120]
[404708929,1770487842482,-500.0,0.00035616,120]
[404708930,1770487842492,-500.0,0.00035616,120]
[404708931,1770487842501,-500.0,0.00035616,120]
[404708932,1770487842508,-429.20473096,0.00035616,120]
[404708933,1770487842517,-166.3503794,0.00035616,120]
[404708934,1770487842526,-500.0,0.00035616,120]
[404708935,1770487842534,-500.0,0.00035616,120]
[404708936,1770487842542,-500.0,0.00035616,120]
[404708937,1770487842552,-500.0,0.00035616,120]
[404708938,1770487842560,-500.0,0.00035616,120]
[404708939,1770487842569,-500.0,0.00035616,120]
[404708940,1770487842577,-500.0,0.00035616,120]
[404708941,1770487842585,-500.0,0.00035616,120]
[404708942,1770487842594,-500.0,0.00035616,120]
[404708943,1770487842602,-500.0,0.00035616,120]
[404708944,1770487842611,-500.0,0.00035616,120]
[404708945,1770487842619,-500.0,0.00035616,120]
[404708946,1770487842628,-500.0,0.00035616,120]
[404708947,1770487842637,-500.0,0.00035616,120]
[404708948,1770487842646,-500.0,0.00035616,120]
[404708949,1770487842655,-160.68793478,0.00035616,120]
[404708950,1770487842664,-168.73217225,0.00035616,120]
[404708951,1770487842674,-500.0,0.00035616,120]
[404708952,1770487842683,-486.14761799,0.00035616,120]
[404708953,1770487842692,-500.0,0.00035616,120]
[404708954,1770487842702,-500.0,0.00035616,120]
[404708955,1770487842711,-500.0,0.00035616,120]
[404708956,1770487842720,-500.0,0.00035616,120]
[404708957,1770487842730,-500.0,0.00035616,120]
[404708958,1770487842739,-500.0,0.00035616,120]
[404708959,1770487842748,-500.0,0.00035616,120]
[404708960,1770487842760,-500.0,0.00035616,120]
[404708961,1770487842770,-500.0,0.00035616,120]
[404708962,1770487842779,-500.0,0.00035616,120]
[404708963,1770487842788,-500.0,0.00035616,120]
[404708964,1770487842799,-500.0,0.00035616,120]
[404708965,1770487842808,-500.0,0.00035616,120]
[404708966,1770487842820,-500.0,0.00035616,120]
[404708967,1770487842830,-500.0,0.00035616,120]
[404708968,1770487842839,-151.91231216,0.00035616,120]
[404708969,1770487842848,-500.0,0.00035616,120]
[404708970,1770487842858,-500.0,0.00035616,120]
[404708975,1770487843069,-500.0,0.00035616,120]
[404708976,1770487843086,-500.0,0.00035616,120]
[404708977,1770487843095,-500.0,0.00035616,120]
[404708978,1770487843106,-500.0,0.00035616,120]
[404708979,1770487843115,-500.0,0.00035616,120]
[404708980,1770487843125,-500.0,0.00035616,120]
[404708981,1770487843135,-500.0,0.00035616,120]
[404708982,1770487843144,-500.0,0.00035616,120]
[404708983,1770487843154,-500.0,0.00035616,120]
[404708984,1770487843164,-500.0,0.00035616,120]
[404708985,1770487843174,-500.0,0.00035616,120]
[404708986,1770487843183,-500.0,0.00035616,120]
[404708987,1770487843193,-500.0,0.00035616,120]
[404708988,1770487843202,-168.50406066,0.00035616,120]
[404708989,1770487843211,-500.0,0.00035616,120]
[404708990,1770487843220,-530.37198261,0.00035616,120]
[404708991,1770487843230,-500.0,0.00035616,120]
[404708992,1770487843239,-500.0,0.00035616,120]
[404708993,1770487843248,-500.0,0.00035616,120]
[404708994,1770487843258,-500.0,0.00035616,120]
[404708995,1770487843267,-500.0,0.00035616,120]
[404708996,1770487843276,-500.0,0.00035616,120]
[404708997,1770487843286,-500.0,0.00035616,120]
[404708998,1770487843295,-209.72917489,0.00035616,120]
[404708999,1770487843305,-174.61306697,0.00035616,120]
[404709000,1770487843314,-500.0,0.00035616,120]
[404709001,1770487843323,-500.0,0.00035616,120]
[404709002,1770487843333,-500.0,0.00035616,120]
[404709003,1770487843342,-534.92938409,0.00035616,120]
[404709004,1770487843351,-193.48247632,0.00035616,14]
[404709005,1770487843361,-500.0,0.00035616,120]
[404709006,1770487843370,-319.29852367,0.00035616,120]
[404709007,1770487843380,-500.0,0.00035616,120]
[404709008,1770487843389,-156.73123317,0.00035616,120]
[404709009,1770487843399,-171.60401407,0.00035616,120]
[404709010,1770487843408,-500.0,0.00035616,120]
[404709011,1770487843418,-206.94879255,0.00035616,120]
[404709012,1770487843430,-225.49939605,0.00035616,120]
[404709013,1770487843440,-361.19318178,0.00035616,120]
[404709014,1770487843451,-545.1868093,0.00035616,120]
[404709015,1770487843460,-192.48707619,0.00035616,120]
[404709016,1770487843469,-500.0,0.00035616,120]
[404709017,1770487843479,-500.0,0.00035616,120]
[404709018,1770487843488,-500.0,0.00035616,120]
[404709019,1770487843498,-500.0,0.00035616,120]
[404709020,1770487843518,-371.31706927,0.00035616,120]
[404709021,1770487843529,-500.0,0.00035616,120]
[404709022,1770487843539,-500.0,0.00035616,120]
[404709023,1770487843548,-361.95679091,0.00035616,120]
[404709024,1770487843558,-497.24754941,0.00035616,120]
[404709025,1770487843568,-322.47602067,0.00035616,120]
[404709026,1770487843578,-333.03193125,0.00035616,120]
[404709027,1770487843588,-540.83256958,0.00035616,120]
[404709028,1770487843598,-329.12929277,0.00035616,120]
[404709029,1770487843607,-500.0,0.00035616,120]
[404709030,1770487843616,-154.78749699,0.00035616,120]
[404709031,1770487843625,-150.1403634,0.00035616,120]
[404709032,1770487843634,-200.34449069,0.00035616,120]
[404709033,1770487843643,-500.0,0.00035616,120]
[404709034,1770487843654,-210.36716271,0.00035616,120]
[404709035,1770487843664,-151.777777,0.00035616,120]
[404709036,1770487843675,-500.0,0.00035616,120]
[404709037,1770487843685,-500.0,0.00035616,120]
[404709038,1770487843695,-500.0,0.00035616,120]
[404709039,1770487843704,-158.9088724,0.00035616,120]
[404709040,1770487843714,-500.0,0.00035616,120]
[404709041,1770487843725,-500.0,0.00035616,120]
[404709042,1770487843735,-500.0,0.00035616,120]
[404709043,1770487843745,-500.0,0.00035616,120]
[404709044,1770487843756,-500.0,0.00035616,120]
[404709045,1770487843769,-500.0,0.00035616,120]
[404709046,1770487843779,-500.0,0.00035616,120]
[404709047,1770487843788,-500.0,0.00035616,120]
[404709048,1770487843800,-500.0,0.00035616,120]
[404709049,1770487843810,-500.0,0.00035616,120]
[404709050,1770487843820,-500.0,0.00035616,120]
[404709051,1770487843830,-246.92634377,0.00035616,120]
[404709052,1770487843839,-500.0,0.00035616,120]
[404709053,1770487843849,-500.0,0.00035616,120]
[404709054,1770487843858,-500.0,0.00035616,120]
[404709055,1770487843868,-500.0,0.00035616,120]
[404709056,1770487843878,-400.76254482,0.00035616,120]
[404709057,1770487843887,-500.0,0.00035616,120]
[404709058,1770487843897,-508.97771167,0.00035616,120]
[404709059,1770487843908,-194.06724193,0.00035616,120]
[404709060,1770487843917,-500.0,0.00035616,120]
[404709061,1770487843928,-500.0,0.00035616,120]
[404709062,1770487843938,-500.0,0.00035616,120]
[404709064,1770487843948,-237.56980597,0.00035616,120]
[404709065,1770487843958,-500.0,0.00035616,120]
[404709066,1770487843968,-223.80485003,0.00035616,120]
[404709067,1770487843979,-500.0,0.00035616,120]
[404709068,1770487843989,-500.0,0.00035616,120]
[404709069,1770487843999,-500.0,0.00035616,120]
[404709070,1770487844009,-500.0,0.00035616,120]
[404709071,1770487844018,-500.0,0.00035616,120]
[404709072,1770487844029,-500.0,0.00035616,120]
[404709073,1770487844039,-179.67994106,0.00035616,120]
[404709074,1770487844049,-500.0,0.00035616,120]
[404709075,1770487844059,-500.0,0.00035616,120]
[404709076,1770487844069,-172.97329733,0.00035616,120]
[404709077,1770487844079,-500.0,0.00035616,120]
[404709079,1770487844088,-500.0,0.00035616,120]
[404709081,1770487844098,-529.62913547,0.00035616,120]
[404709083,1770487844107,-235.6558339,0.00035616,30]
[404709085,1770487844117,-500.0,0.00035616,120]
[404709086,1770487844126,-500.0,0.00035616,120]
[404709087,1770487844136,-500.0,0.00035616,120]
[404709088,1770487844145,-543.63000319,0.00035616,120]
[404709089,1770487844155,-256.62695533,0.00035616,120]
[404709090,1770487844165,-365.97248347,0.00035616,120]
[404709091,1770487844174,-500.0,0.00035616,120]
[404709092,1770487844184,-500.0,0.00035616,120]
[404709093,1770487844195,-500.0,0.00035616,120]
[404709094,1770487844205,-500.0,0.00035616,120]
[404709095,1770487844216,-500.0,0.00035616,120]
[404709096,1770487844226,-500.0,0.00035616,120]
[404709097,1770487844237,-500.0,0.00035616,120]
[404709098,1770487844248,-500.0,0.00035616,120]
[404709099,1770487844258,-500.0,0.00035616,120]
[404709100,1770487844269,-500.0,0.00035616,120]
[404709101,1770487844280,-500.0,0.00035616,120]
[404709102,1770487844292,-500.0,0.00035616,120]
[404709103,1770487844302,-243.53078136,0.00035616,120]
[404709104,1770487844312,-500.0,0.00035616,120]
[404709105,1770487844322,-265.32175288,0.00035616,120]
[404709106,1770487844332,-500.0,0.00035616,120]
[404709107,1770487844343,-500.0,0.00035616,120]
[404709108,1770487844354,-500.0,0.00035616,120]
[404709109,1770487844364,-500.0,0.00035616,120]
[404709110,1770487844375,-500.0,0.00035616,120]
[404709111,1770487844385,-500.0,0.00035616,120]
[404709112,1770487844396,-253.33307865,0.00035616,120]
[404709113,1770487844406,-500.0,0.00035616,120]
[404709114,1770487844419,-500.0,0.00035616,120]
[404709115,1770487844429,-500.0,0.00035616,120]
[404709116,1770487844438,-194.3954,0.00035616,120]
[404709117,1770487844448,-162.53022899,0.00035616,120]
[404709118,1770487844457,-500.0,0.00035616,120]
[404709119,1770487844468,-448.95656897,0.00035616,120]
[404709120,1770487844480,-150.70487095,0.00035616,120]
[404709121,1770487844490,-500.0,0.00035616,120]
[404709122,1770487844499,-500.0,0.00035616,120]
[404709123,1770487844508,-500.0,0.00035616,120]
[404709124,1770487844518,-500.0,0.00035616,120]
[404709125,1770487844527,-500.0,0.00035616,120]
[404709126,1770487844537,-500.0,0.00035616,120]
[404709127,1770487844547,-500.0,0.00035616,120]
[404709128,1770487844558,-500.0,0.00035616,120]
[404709129,1770487844569,-500.0,0.00035616,120]
[404709130,1770487844578,-500.0,0.00035616,120]
[404709131,1770487844589,-500.0,0.00035616,120]
[404709132,1770487844598,-358.54934377,0.00035616,120]
[404709133,1770487844608,-500.0,0.00035616,120]
[404709134,1770487844618,-500.0,0.00035616,120]
[404709135,1770487844629,-202.59114468,0.00035616,120]
[404709136,1770487844640,-500.0,0.00035616,120]
[404709137,1770487844650,-493.67414204,0.00035616,120]
[404709138,1770487844660,-500.0,0.00035616,120]
[404709139,1770487844670,-204.36178781,0.00035616,120]
[404709140,1770487844679,-500.0,0.00035616,120]
[404709141,1770487844689,-500.0,0.00035616,120]
[404709142,1770487844698,-500.0,0.00035616,120]
[404709143,1770487844707,-500.0,0.00035616,120]
[404709144,1770487844717,-500.0,0.00035616,120]
[404709145,1770487844729,-407.1396537,0.00035616,120]
[404709146,1770487844739,-500.0,0.00035616,120]
[404709147,1770487844749,-500.0,0.00035616,120]
[404709148,1770487844763,-500.0,0.00035616,120]
[404709149,1770487844772,-520.83975481,0.00035616,120]
[404709150,1770487844782,-642.51045263,0.00035616,120]
[404709151,1770487844791,-171.51954264,0.00035616,120]